[Event "37th ECCC 2022"]
[Site "Mayrhofen"]
[Date "2022.10.03"]
[Round "1.13"]
[White "Elsness, Frode"]
[Black "Esipenko, Andrey"]
[Result "0-1"]
[ECO "A05"]
[WhiteElo "2468"]
[BlackElo "2668"]
[Annotator "TA"]
[PlyCount "40"]
[EventDate "2022.10.03"]
[EventType "team-tourn"]
[EventCountry "AUT"]
[SourceTitle "playchess.com"]
[Source "ChessBase"]
[SourceQuality "1"]
[TimeControl "40/5400+30:1800+30"]

{[%evp 9,40,-27,22,-20,-29,-96,-98,-96,-96,-103,-107,-120,-116,-112,-109,-113,-110,-139,-147,-145,-132,-146,-134,-224,-230,-261,-258,-280,-286,-270,-264,-316,-310]} 1. Nf3 {[%emt 0:00:03]} Nf6 {[%emt 0:00:33]} 2. g3 {[%emt 0:00:31]} c5 {[%emt 0:00:32]} 3. Bg2 {[%emt 0:00:43]} Nc6 {[%emt 0:00:22]} 4. d4 {[%emt 0:03:54]} cxd4 {[%emt 0:02:46]} 5. Nxd4 {[%emt 0:00:06]} h5 {[%emt 0:05:04]} (5... e5 $142 6. Nxc6 dxc6) 6. h3 {[%emt 0:03:06] A04: Unusual lines after 1 Nf3 and King's Indian Attack.} e5 {[%emt 0:04:35] [#]} 7. Nb5 $146 {[%emt 0:05:01]} (7. Nxc6 $11 bxc6 8. c4) ({Predecessor:} 7. Nxc6 dxc6 8. Qxd8+ Kxd8 9. Bg5 Be7 10. Nd2 Be6 11. Nf3 Nd7 12. Bxe7+ Kxe7 13. Ng5 {0-1 (65) Gupta,A (2610)-Kovalenko,I (2635) Chess.com INT 2018}) 7... d5 $17 {[%emt 0:06:13]} 8. Bxd5 {[%emt 0:08:59][%cal Oc1g5] Black is better.} Qa5+ $1 {[%emt 0:01:02]} (8... Nxd5 $6 9. Qxd5 Bf5 10. N1c3 $15) 9. N1c3 {[%emt 0:06:04] Strongly threatening Bxc6+.} Nxd5 {[%emt 0:00:59]} 10. Qxd5 {[%emt 0:00:12]} Be6 $1 {[%emt 0:00:33]} 11. Nd6+ {[%emt 0:04:58]} Bxd6 {[%emt 0:00:12]} 12. Qxd6 {[%emt 0:00:05] [#]} Nd4 $1 {[%emt 0:15:59] And now ...Rd8 would win.} 13. Kf1 {[%emt 0:17:01]} Rd8 {[%emt 0:03:44][%cal Ba8d8,Bd8d6,Bd6c6,Bc6c2][%mdl 32]} 14. b4 {[%emt 0:09:56] Qxe6+ is the strong threat.} Rxd6 {[%emt 0:00:38]} 15. bxa5 {[%emt 0:00:01]} Rc6 $36 {[%emt 0:00:57][%mdl 2048] Black is in control. Black is much more active. The white rooks are badly placed.} (15... Nxc2 16. Rb1 $15) 16. Bd2 {[%emt 0:07:20] [#]} (16. Bb2 $17 {is a better defense.}) 16... O-O $1 $19 {[%emt 0:00:27]} ({And not} 16... Nxc2 17. Rc1 Na3 18. Kg2 $17) 17. Rb1 {[%emt 0:06:11]} Rfc8 {[%emt 0:02:07] Black has a decisive advantage.} 18. Nb5 {[%emt 0:01:02]} Rxc2 {[%emt 0:01:04]} 19. Nxd4 {[%emt 0:03:00]} exd4 {[%emt 0:00:10]} 20. Bf4 {[%emt 0:00:35]} Bc4 {[%emt 0:02:24] Black took control after the opening.  Weighted Error Value: White=0.25 (precise) /Black=0.03 (flawless)} ({Don't blunder} 20... Rxa2 $2 21. Be5 $19) ({Avoid the trap} 20... Bxa2 $2 21. Rd1 $19) 0-1

[Event "37th ECCC 2022"]
[Site "Mayrhofen"]
[Date "2022.10.03"]
[Round "1.14"]
[White "Moussard, Jules"]
[Black "Mihajlov, Sebastian"]
[Result "1-0"]
[ECO "C92"]
[WhiteElo "2686"]
[BlackElo "2375"]
[Annotator "TA"]
[PlyCount "93"]
[EventDate "2022.10.03"]
[EventType "team-tourn"]
[EventCountry "AUT"]
[SourceTitle "playchess.com"]
[Source "ChessBase"]
[SourceQuality "1"]
[TimeControl "40/5400+30:1800+30"]

{[%evp 29,93,0,0,7,31,39,42,37,39,28,39,31,36,35,14,0,15,0,9,3,14,0,6,0,0,0,0,0,0,0,0,0,0,0,0,0,0,0,0,0,0,0,0,0,0,0,14,-19,-5,-30,38,39,110,108,113,116,105,110,369,381,476,466,1593,1596,1369,1361]} 1. e4 {[%emt 0:00:04]} e5 {[%emt 0:01:06]} 2. Nf3 {[%emt 0:00:07]} Nc6 {[%emt 0:00:05]} 3. Bb5 {[%emt 0:00:17]} a6 {[%emt 0:00:12]} 4. Ba4 {[%emt 0:00:06]} Nf6 {[%emt 0:00:26]} 5. O-O {[%emt 0:00:20]} Be7 {[%emt 0:00:25]} 6. Re1 {[%emt 0:00:17]} b5 {[%emt 0:00:07]} 7. Bb3 {[%emt 0:00:04]} d6 {[%emt 0:00:04]} 8. c3 {[%emt 0:00:12]} O-O {[%emt 0:00:08]} 9. h3 {[%emt 0:00:04]} Bb7 {[%emt 0:04:34]} 10. d4 {[%emt 0:00:49]} Re8 {[%emt 0:00:43]} 11. Nbd2 {[%emt 0:00:49]} Bf8 {[%emt 0:00:40]} 12. Bc2 {[%emt 0:01:34]} h6 {[%emt 0:18:21]} 13. d5 {[%emt 0:02:10]} Nb8 {[%emt 0:00:26]} 14. b3 {[%emt 0:00:07]} Nbd7 {[%emt 0:00:19]} 15. c4 {[%emt 0:04:51]} c6 {[%emt 0:09:05]} 16. Nf1 {[%emt 0:00:46] C95: Closed Ruy Lopez: Breyer Variation with 10 d4.} cxd5 {[%emt 0:08:49]} 17. cxd5 {[%emt 0:00:20]} Qc7 {[%emt 0:09:19]} 18. Bd2 {[%emt 0:05:02] [#] White is slightly better.} Rec8 $146 {[%emt 0:04:30]} ({Predecessor:} 18... Rac8 19. Rc1 g6 20. Bb1 Qb8 21. Qe2 Nh5 22. Rxc8 Bxc8 {0-1 (69) Walter,K-Diedam,N Germany 1991}) 19. Rc1 {[%emt 0:04:41]} a5 {[%emt 0:02:40]} 20. a3 {[%emt 0:04:46]} Qd8 {[%emt 0:05:14]} 21. b4 {[%emt 0:13:23]} axb4 {[%emt 0:01:22]} 22. Bxb4 {[%emt 0:07:27]} Nc5 {[%emt 0:00:37]} 23. Qe2 {[%emt 0:03:51]} Qd7 {[%emt 0:07:52]} 24. Rb1 {[%emt 0:02:42]} g6 {[%emt 0:05:17]} 25. Kh2 {[%emt 0:02:34]} h5 {[%emt 0:05:17]} 26. Bd3 {[%emt 0:08:37]} Nxd3 {[%emt 0:04:13]} 27. Qxd3 {[%emt 0:00:02]} Qc7 {[%emt 0:04:31]} 28. Ne3 {[%emt 0:04:37]} Ba6 {[%emt 0:00:38]} 29. Nd2 {[%emt 0:07:32]} Nd7 {[%emt 0:00:28]} 30. Qe2 {[%emt 0:00:28]} Nc5 {[%emt 0:01:09]} 31. Rec1 {[%emt 0:00:19]} Qd7 {[%emt 0:03:29]} 32. Rc2 {[%emt 0:07:43]} Be7 {[%emt 0:01:52]} 33. Rbc1 {[%emt 0:00:50]} Kg7 {[%emt 0:00:08]} 34. Qf3 {[%emt 0:03:56]} Bb7 {[%emt 0:00:32]} 35. Qe2 {[%emt 0:02:13]} Ba6 {[%emt 0:01:03]} 36. Nd1 {[%emt 0:00:05]} Bg5 {[%emt 0:01:11]} 37. Nb2 {[%emt 0:03:03]} Bf4+ {[%emt 0:01:29]} 38. g3 {[%emt 0:06:51]} Bxd2 {[%emt 0:00:03]} 39. Rxd2 {[%emt 0:03:11][%cal Bc2d2,Bd2d6,Bd6f6][%mdl 32]} Nb3 {[%emt 0:00:45]} (39... Bb7 $1 $11) 40. Rc6 $1 $14 {[%emt 0:00:05]} Rxc6 {[%emt 0:00:48]} (40... Nxd2 $14 41. Rxd6 Qc7 42. Qxd2 Qc2 43. Qxc2 Rxc2) 41. dxc6 $16 {[%emt 0:30:04]} Qxc6 {[%emt 0:30:07]} 42. Rxd6 {[%emt 0:00:14]} Nd4 {[%emt 0:00:00] Hoping for ...Qxd6.} 43. Qe3 {[%emt 0:00:00]} Qc7 {[%emt 0:00:00][%mdl 8192] A mistake that costs the game.} (43... Qe8 $16) 44. Nd3 $18 {[%emt 0:00:00]} f6 {[%emt 0:00:00]} 45. Nf4 {[%emt 0:00:00][%cal Of4h5] Threatens to win with Nxh5+! White is clearly winning.} Bc8 {[%emt 0:00:00] [#]} (45... Qf7 $142 46. Nd5 Ne6) 46. Nxh5+ $1 {[%emt 0:00:00][%mdl 512]} gxh5 {[%emt 0:00:00] [#]} 47. Rxf6 $3 {[%emt 0:00:00][%mdl 512] Weighted Error Value: White=0.03 (flawless) /Black=0.20 (precise)} 1-0

[Event "37th ECCC 2022"]
[Site "Mayrhofen"]
[Date "2022.10.03"]
[Round "1.15"]
[White "Mikalsen, Erlend"]
[Black "Alekseenko, Kirill"]
[Result "0-1"]
[ECO "C28"]
[WhiteElo "2354"]
[BlackElo "2691"]
[Annotator "TA"]
[PlyCount "66"]
[EventDate "2022.10.03"]
[EventType "team-tourn"]
[EventCountry "AUT"]
[SourceTitle "playchess.com"]
[Source "ChessBase"]
[SourceQuality "1"]
[TimeControl "40/5400+30:1800+30"]

{[%evp 9,66,0,0,0,7,7,2,0,0,-2,0,0,2,0,0,0,6,0,0,-16,-6,-8,0,0,0,-14,0,0,0,0,0,-10,18,0,0,0,0,0,0,0,0,0,45,-19,-22,-62,-43,-163,-175,-272,-255,-1550,-1545,-1182,-1105,-1079,-885,-792,-732]} 1. e4 {[%emt 0:00:02]} e5 {[%emt 0:00:15]} 2. Nc3 {[%emt 0:00:06]} Nc6 {[%emt 0:00:53]} 3. Bc4 {[%emt 0:00:07]} Nf6 {[%emt 0:00:36]} 4. d3 {[%emt 0:00:06]} Na5 {[%emt 0:01:05]} 5. Qf3 {[%emt 0:00:29]} c6 {[%emt 0:01:59]} 6. Nge2 {[%emt 0:00:57] C28: Vienna Game: 2...Nf6 3 Bc4 Nc6.} b5 {[%emt 0:01:47]} 7. Bb3 {[%emt 0:00:10]} d6 $5 {[%emt 0:00:41][%mdl 4] A promising side line.} 8. h3 {[%emt 0:03:33] The position is equal.} Be7 {[%emt 0:05:52]} 9. Ng3 {[%emt 0:00:39]} O-O {[%emt 0:03:21]} 10. O-O {[%emt 0:01:19] [#]} h6 $146 {[%emt 0:03:31]} ({Predecessor:} 10... Ne8 11. Qd1 Nxb3 12. axb3 f5 13. Nxf5 Bxf5 14. exf5 Rxf5 15. Qg4 Rf7 16. Ra6 Qc7 {1-0 (53) Utegaliev,A (2488)-Thybo,J (2569) Belgrade 2021}) 11. Nf5 {[%emt 0:00:25]} Bxf5 {[%emt 0:01:01]} 12. Qxf5 {[%emt 0:00:09]} Re8 {[%emt 0:01:36]} 13. Be3 {[%emt 0:07:01]} Bf8 {[%emt 0:10:43]} 14. Rad1 {[%emt 0:05:20]} Nxb3 {[%emt 0:04:20]} 15. axb3 {[%emt 0:00:06]} g6 {[%emt 0:00:44]} 16. Qf3 {[%emt 0:00:05]} Bg7 {[%emt 0:00:25]} 17. Rfe1 {[%emt 0:04:07]} Qe7 {[%emt 0:09:01]} 18. Ra1 {[%emt 0:12:51]} a5 {[%emt 0:08:11]} 19. Ra2 {[%emt 0:00:39]} b4 {[%emt 0:03:33]} 20. Ne2 {[%emt 0:02:27]} Nh7 {[%emt 0:02:32][%cal Bf6h7,Bh7f8,Bf8e6][%mdl 32]} 21. Rea1 {[%emt 0:00:55]} Qc7 {[%emt 0:01:26]} 22. g4 {[%emt 0:03:58]} Nf8 {[%emt 0:06:24]} 23. Kg2 {[%emt 0:02:28]} Ne6 {[%emt 0:00:08]} 24. h4 {[%emt 0:00:37]} d5 {[%emt 0:03:36]} 25. h5 {[%emt 0:00:44]} dxe4 {[%emt 0:04:01]} 26. dxe4 {[%emt 0:03:49]} (26. Qxe4 $14 Kh7 27. Ng3) 26... c5 $11 {[%emt 0:01:07]} 27. hxg6 {[%emt 0:12:25]} fxg6 {[%emt 0:00:07]} 28. Rh1 {[%emt 0:00:06]} (28. Nc1 $15) 28... Rf8 $19 {[%emt 0:03:04]} 29. Qh3 {[%emt 0:01:18] [#]} (29. Qg3 $142) 29... Qc6 $1 {[%emt 0:04:34]} 30. Bxh6 $2 {[%emt 0:00:47]} (30. f3 Nd4 31. Bxd4 (31. Bxh6 $2 Nxe2 32. Qh4 Bxh6 $19) 31... cxd4 32. Rc1) 30... Qxe4+ {[%emt 0:01:55] Black is clearly winning.} ({Inferior is} 30... Bxh6 31. Qxh6 Qxe4+ 32. Kg1 $17) 31. Kf1 {[%emt 0:00:03]} Rf3 {[%emt 0:02:03]} ({Weaker is} 31... Nd4 32. Nxd4 cxd4 33. Qg2 (33. Bxg7 $2 Kxg7 34. Rh2 Rh8 $19) 33... Qxg2+ 34. Kxg2 $17) 32. Qh4 {[%emt 0:00:21] [#]} Rxf2+ $3 {[%emt 0:04:53][%mdl 512]} 33. Kxf2 {[%emt 0:00:20]} Rf8+ {[%emt 0:00:19] Weighted Error Value: White=0.41/Black=0.19 (very precise)} 0-1

[Event "37th ECCC 2022"]
[Site "Mayrhofen"]
[Date "2022.10.03"]
[Round "1.16"]
[White "Movsesian, Sergei"]
[Black "Elmi, Saad Abobaker"]
[Result "1-0"]
[ECO "B24"]
[WhiteElo "2619"]
[BlackElo "2263"]
[Annotator "TA"]
[PlyCount "71"]
[EventDate "2022.10.03"]
[EventType "team-tourn"]
[EventCountry "AUT"]
[SourceTitle "playchess.com"]
[Source "ChessBase"]
[SourceQuality "1"]
[TimeControl "40/5400+30:1800+30"]

{[%evp 9,71,14,0,5,8,4,4,5,14,5,19,22,22,15,32,15,14,12,25,13,25,30,29,5,28,25,60,22,31,10,6,9,25,4,6,0,0,0,7,0,0,0,12,11,21,22,49,0,10,0,0,0,0,-7,0,0,0,0,206,204,191,181,770,737]} 1. e4 {[%emt 0:00:04]} c5 {[%emt 0:00:16]} 2. Nc3 {[%emt 0:00:18]} Nc6 {[%emt 0:00:42]} 3. Bb5 {[%emt 0:00:34]} Nd4 {[%emt 0:00:10]} 4. Nf3 {[%emt 0:00:18]} a6 {[%emt 0:00:56]} 5. Bd3 {[%emt 0:01:04]} g6 {[%emt 0:03:14]} 6. Nxd4 {[%emt 0:03:22] B23: Closed Sicilian: Lines without g3.} cxd4 {[%emt 0:00:07]} 7. Ne2 {[%emt 0:00:03]} Bg7 {[%emt 0:00:10]} 8. c3 {[%emt 0:06:41] The position is equal.} dxc3 {[%emt 0:00:30]} 9. dxc3 {[%emt 0:00:28]} d6 {[%emt 0:04:46]} 10. O-O {[%emt 0:02:16]} Nf6 {[%emt 0:00:09]} 11. a4 {[%emt 0:00:51]} b6 {[%emt 0:01:38] [#]} 12. c4 $146 {[%emt 0:03:52]} ({Predecessor:} 12. a5 b5 13. Be3 Bb7 14. Bb6 Qc8 15. f3 d5 16. Ng3 O-O 17. Qe2 dxe4 18. Bxe4 Nxe4 19. Nxe4 {0-1 (71) Verneuil,P (2114)-Phadke,S (2191) Caleta 2019}) 12... O-O {[%emt 0:03:46]} 13. Nc3 {[%emt 0:01:07]} Bb7 {[%emt 0:00:42]} 14. Bg5 {[%emt 0:01:52]} Qc7 {[%emt 0:10:16]} 15. Qd2 {[%emt 0:02:53]} e6 {[%emt 0:01:39]} 16. Rac1 {[%emt 0:08:28]} Nd7 {[%emt 0:04:32]} 17. Rfd1 {[%emt 0:07:50]} Bf6 {[%emt 0:03:19]} 18. Be3 {[%emt 0:06:12]} Rfd8 {[%emt 0:01:25]} 19. f3 {[%emt 0:03:17]} Nc5 {[%emt 0:06:55]} 20. Bc2 {[%emt 0:03:19] Prevents Nb3.} a5 {[%emt 0:06:17]} 21. Bf4 {[%emt 0:04:37][%cal Rf4d6]} Be5 {[%emt 0:14:40]} 22. Bg5 {[%emt 0:02:39]} f6 {[%emt 0:01:48]} 23. Be3 {[%emt 0:02:57] Hoping for Nb5.} Bc6 {[%emt 0:01:42]} 24. b3 {[%emt 0:02:40]} f5 {[%emt 0:01:12]} 25. exf5 {[%emt 0:11:44]} gxf5 {[%emt 0:00:16]} 26. Kh1 {[%emt 0:01:15]} Kh8 {[%emt 0:04:54]} 27. Ne2 {[%emt 0:03:26]} Rg8 {[%emt 0:01:16]} 28. Ng3 {[%emt 0:03:28]} (28. Nd4 $14) 28... Rad8 {[%emt 0:02:35]} 29. Bf4 {[%emt 0:06:23]} Rdf8 {[%emt 0:04:33]} 30. Qe3 {[%emt 0:04:30]} Rf6 {[%emt 0:04:14]} 31. Nh5 {[%emt 0:00:48]} Rfg6 {[%emt 0:00:13]} 32. Rd2 {[%emt 0:00:15]} Bxf4 $1 {[%emt 0:08:31]} 33. Nxf4 {[%emt 0:00:13] Black must now prevent Rcd1. Dancing on a razor blade.} Rf6 $2 {[%emt 0:02:35] [#]} (33... Rg5 $1 $11 {and Black stays safe.}) 34. Rcd1 $1 $18 {[%emt 0:01:42]} ({But not} 34. Nh5 Rff8) 34... e5 {[%emt 0:01:27] [#]} 35. Rxd6 $1 {[%emt 0:01:49]} exf4 {[%emt 0:00:20]} (35... Qe7 36. Rxf6 Qxf6) 36. Qc3 {[%emt 0:00:11] Weighted Error Value: White=0.07 (flawless) /Black=0.15 (very precise)} 1-0

[Event "37th ECCC 2022"]
[Site "Mayrhofen"]
[Date "2022.10.03"]
[Round "1.17"]
[White "Stigar, Petter"]
[Black "Cornette, Matthieu"]
[Result "0-1"]
[ECO "E62"]
[WhiteElo "2206"]
[BlackElo "2572"]
[Annotator "TA"]
[PlyCount "78"]
[EventDate "2022.10.03"]
[EventType "team-tourn"]
[EventCountry "AUT"]
[SourceTitle "playchess.com"]
[Source "ChessBase"]
[SourceQuality "1"]
[TimeControl "40/5400+30:1800+30"]

{[%evp 21,78,17,29,0,9,-6,0,0,0,0,0,-7,-12,-13,0,0,0,-20,-4,-14,-8,-6,0,-18,-5,-17,-12,-35,-24,-39,-37,-37,-27,-31,-32,-25,-28,-70,-46,-50,-47,-48,-38,-39,-35,-36,-33,-34,-9,-144,-148,-552,-556,-550,-550,-526,-516,-674,-254]} 1. Nf3 {[%emt 0:00:05]} Nf6 {[%emt 0:00:26]} 2. c4 {[%emt 0:00:24]} g6 {[%emt 0:00:17]} 3. g3 {[%emt 0:00:30]} Bg7 {[%emt 0:00:33]} 4. Bg2 {[%emt 0:00:10]} O-O {[%emt 0:00:20]} 5. d4 {[%emt 0:00:41]} d6 {[%emt 0:00:30]} 6. O-O {[%emt 0:00:14]} c6 {[%emt 0:00:49]} 7. Nc3 {[%emt 0:00:19]} Bf5 {[%emt 0:00:03]} 8. b3 {[%emt 0:11:14]} Ne4 {[%emt 0:01:38]} 9. Bb2 {[%emt 0:04:49]} Nxc3 {[%emt 0:00:13]} 10. Bxc3 {[%emt 0:00:03]} Be4 {[%emt 0:00:07]} 11. Qd2 {[%emt 0:03:59]} Nd7 $1 {[%emt 0:01:29] The main line 11...Nd7 scores better than 11...d5.} 12. Ne1 {[%emt 0:06:11][%cal Bf3e1,Be1g2,Bg2f4][%mdl 32] E62: King's Indian: Fianchetto: 6...c6 and Panno Variation (6...Nc6) without ...a6.} Bxg2 {[%emt 0:01:07]} 13. Nxg2 {[%emt 0:01:06]} d5 {[%emt 0:00:02]} 14. cxd5 {[%emt 0:02:47] The position is equal.} cxd5 {[%emt 0:00:04]} 15. Rfc1 {[%emt 0:09:43] [#]} a5 $146 {[%emt 0:06:13][%cal Ba7a5,Ba5a4][%mdl 32]} ({Predecessor:} 15... Nf6 16. f3 Re8 17. Rc2 Qb6 18. Ba5 Qa6 19. Bc7 Nd7 20. Rac1 Rac8 21. e3 g5 {½-½ (42) Musalov,R (2332)-Shtembuliak,E (2477) Moscow 2017}) 16. Qd3 {[%emt 0:05:35]} Qb6 {[%emt 0:02:07]} 17. Nf4 {[%emt 0:05:57]} e6 {[%emt 0:00:08]} 18. e3 {[%emt 0:00:21]} Rfc8 {[%emt 0:14:11]} 19. Bb2 {[%emt 0:01:40]} Rc6 {[%emt 0:01:54]} 20. Qd1 {[%emt 0:08:09]} a4 {[%emt 0:13:14]} 21. Nd3 {[%emt 0:01:03]} Qb5 {[%emt 0:00:14]} 22. Bc3 {[%emt 0:11:46]} Bf8 {[%emt 0:03:24]} 23. Rab1 {[%emt 0:05:01]} axb3 {[%emt 0:05:12]} 24. axb3 {[%emt 0:02:03]} Ra3 {[%emt 0:02:41]} 25. Be1 {[%emt 0:04:26]} Bd6 {[%emt 0:05:34]} 26. Rxc6 {[%emt 0:01:28]} bxc6 {[%emt 0:03:20]} 27. Qc2 {[%emt 0:00:16]} Nf6 {[%emt 0:04:37]} 28. Kg2 {[%emt 0:01:53]} h5 {[%emt 0:02:34]} 29. Bd2 {[%emt 0:01:51][%cal Be1d2,Bd2c1,Bc1b2][%mdl 32]} Ne4 {[%emt 0:02:24] Black is more active.} 30. Bc1 {[%emt 0:00:44]} Ra6 {[%emt 0:01:13]} 31. f3 {[%emt 0:01:07]} Nf6 {[%emt 0:00:58]} 32. Bb2 {[%emt 0:02:00]} g5 {[%emt 0:01:41]} 33. Nc5 $1 {[%emt 0:00:54]} Bxc5 {[%emt 0:07:54]} 34. dxc5 {[%emt 0:00:04]} Nd7 {[%emt 0:02:40]} (34... Ra2 $5 {[%cal Rg5g4]}) 35. b4 {[%emt 0:01:14]} (35. e4 $11 {remains equal.}) 35... Ra2 $17 {[%emt 0:01:53] [#] Hoping for ...Ne5.} ({Stronger than} 35... Qxb4 36. Bd4 Qc4 37. Qxc4 dxc4 38. Rb7 Ra2+ 39. Kf1 $17) 36. Qd2 $2 {[%emt 0:03:37][%mdl 8192] This costs White the game.} (36. Ra1 $17 {is a better chance.} Rxa1 37. Bxa1) 36... Ne5 $19 {[%emt 0:03:02] And now ...g4 would win. Black is clearly winning.} 37. e4 {[%emt 0:00:46]} f6 {[%emt 0:00:30]} 38. exd5 {[%emt 0:00:33]} exd5 {[%emt 0:04:24]} 39. f4 {[%emt 0:03:21] [#]} Qd3 $2 {[%emt 0:01:30] Weighted Error Value: White=0.44/Black=0.05 (flawless)} (39... Qc4 $1 40. Qe1 Qc2+ 41. Kh1 gxf4 42. gxf4 Ng6) 0-1

[Event "37th ECCC 2022"]
[Site "Mayrhofen"]
[Date "2022.10.03"]
[Round "1.18"]
[White "Terekhov, Andrey"]
[Black "Bjugn, Gisle"]
[Result "1-0"]
[ECO "E01"]
[WhiteElo "2308"]
[BlackElo "1866"]
[Annotator "RC"]
[PlyCount "75"]
[EventDate "2022.10.03"]
[EventType "team-tourn"]
[EventCountry "AUT"]
[SourceTitle "playchess.com"]
[Source "ChessBase"]
[SourceQuality "1"]
[TimeControl "40/5400+30:1800+30"]

1. d4 {[%emt 0:00:05]} Nf6 {[%emt 0:00:12]} 2. c4 {[%emt 0:00:07]} e6 {[%emt 0:00:22]} 3. g3 {[%emt 0:00:19]} d5 {[%emt 0:00:20]} 4. Bg2 {[%emt 0:00:08]} Bb4+ {[%emt 0:09:41]} 5. Nd2 {[%emt 0:01:26]} O-O {[%emt 0:05:13]} 6. Ngf3 {[%emt 0:00:52]} c5 {[%emt 0:07:59]} 7. dxc5 {[%emt 0:22:56]} dxc4 {[%emt 0:06:06]} 8. O-O {[%emt 0:01:31]} Qd5 {[%emt 0:32:02]} 9. Qc2 {[%emt 0:16:17]} Bxd2 {[%emt 0:12:18]} 10. Bxd2 {[%emt 0:16:06]} Nbd7 {[%emt 0:02:12]} 11. Bb4 {[%emt 0:05:18]} a5 {[%emt 0:03:47]} 12. Ba3 {[%emt 0:04:14]} Re8 {[%emt 0:00:03]} 13. Nd2 {[%emt 0:01:07]} Qh5 {[%emt 0:03:26]} 14. Nxc4 {[%emt 0:01:02]} Nd5 {[%emt 0:02:57]} 15. Bf3 {[%emt 0:09:30]} Qg5 {[%emt 0:02:11]} 16. h4 {[%emt 0:02:28]} Qf6 {[%emt 0:00:37]} 17. Rfd1 {[%emt 0:04:32]} Ne5 {[%emt 0:00:52]} 18. Nxe5 {[%emt 0:00:47]} Qxe5 {[%emt 0:00:06]} 19. Qa4 {[%emt 0:03:50]} Rd8 {[%emt 0:00:53]} 20. e4 {[%emt 0:02:06]} Bd7 {[%emt 0:00:12]} 21. Qd4 {[%emt 0:01:48]} Qf6 {[%emt 0:02:03]} 22. Bg2 {[%emt 0:00:48]} Nc7 {[%emt 0:01:34]} 23. e5 {[%emt 0:00:15]} Qf5 {[%emt 0:01:22]} 24. Bxb7 {[%emt 0:00:47]} Rab8 {[%emt 0:03:16]} 25. Be4 {[%emt 0:01:01]} Qh5 {[%emt 0:00:18]} 26. c6 {[%emt 0:00:34]} Be8 {[%emt 0:00:44]} 27. Qxd8 {[%emt 0:00:15]} Rxd8 {[%emt 0:00:01]} 28. Rxd8 {[%emt 0:00:05]} f5 {[%emt 0:00:09]} 29. Bg2 {[%emt 0:00:43]} Kf7 {[%emt 0:00:51]} 30. Bd6 {[%emt 0:00:25]} Nb5 {[%emt 0:02:28]} 31. c7 {[%emt 0:01:39]} Nxc7 {[%emt 0:00:01]} 32. Bxc7 {[%emt 0:00:03]} Ke7 {[%emt 0:00:04]} 33. Rb8 {[%emt 0:00:48]} Kd7 {[%emt 0:00:13]} 34. Bxa5 {[%emt 0:00:14]} f4 {[%emt 0:00:26]} 35. Rb7+ {[%emt 0:00:12]} Kc8 {[%emt 0:00:20]} 36. Rc1+ {[%emt 0:00:10]} Bc6 {[%emt 0:00:03]} 37. Bxc6 {[%emt 0:00:11]} Qxe5 {[%emt 0:00:44]} 38. Bf3+ {[%emt 0:00:16]} 1-0